bitfinex/quotes_ETHUSD_20230403
["timestamp","ask_amount","ask_price","bid_price","bid_amount"]
[1680541007520,3.24500731,1795.3,1795.0,1.26272409]
[1680541007716,3.25400731,1795.3,1795.0,1.26272409]
[1680541008338,3.25100731,1795.3,1795.0,1.26272409]
[1680541008518,3.24500731,1795.3,1795.0,1.26272409]
[1680541008922,3.24500731,1795.3,1795.1,0.34743843]
[1680541009465,0.47898513,1795.3,1795.1,2.42303843]
[1680541010323,0.47898513,1795.3,1795.2,1.24]
[1680541010524,0.47898513,1795.3,1795.2,3.18964]
[1680541011565,0.47898513,1795.3,1795.2,4.18964]
[1680541011764,0.47898513,1795.3,1795.2,4.19564]
[1680541012259,0.47898513,1795.3,1795.2,5.43564]
[1680541012466,0.47898513,1795.3,1795.2,5.43764]
[1680541012838,0.47898513,1795.3,1795.2,5.45039802]
[1680541014803,0.47898513,1795.3,1795.2,8.2164202]
[1680541014982,0.47898513,1795.3,1795.2,17.2974202]
[1680541016204,0.47898513,1795.3,1795.2,24.0004202]
[1680541022392,0.11000001,1795.8,1795.6,1.0]
[1680541022628,0.11000001,1795.8,1795.7,2.06332]
[1680541023846,0.11000001,1795.8,1795.7,2.53240303]
[1680541027747,0.11000001,1795.8,1795.7,2.60840303]
[1680541027915,0.11000001,1795.8,1795.7,1.30440303]
[1680541028972,0.11000001,1795.8,1795.7,0.46908303]
[1680541029268,0.11000001,1795.8,1795.7,1.30440303]
[1680541032148,0.11000001,1795.8,1795.7,0.74752303]
[1680541037843,0.1072041,1795.8,1795.7,0.74752303]
[1680541038496,0.1072041,1795.8,1795.7,2.44088826]
[1680541038701,0.1072041,1795.8,1795.7,1.97180523]
[1680541039845,0.1072041,1795.8,1795.7,2.4412048]
[1680541043545,0.1072041,1795.8,1795.7,0.74783957]
[1680541044302,0.1072041,1795.8,1795.7,0.46939957]
[1680541044799,0.1072041,1795.8,1795.4,0.27848]
[1680541045161,0.1072041,1795.8,1795.3,0.002]
[1680541045162,10.13546218,1795.7,1795.3,0.002]
[1680541045463,10.13546218,1795.7,1795.0,0.8356]
[1680541045464,10.13746218,1795.7,1795.0,0.8356]
[1680541045663,10.13746218,1795.7,1795.0,0.84163]
[1680541045947,6.39774622,1795.6,1795.0,0.83563]
[1680541046143,9.1657684,1795.6,1795.0,0.84163]
[1680541046308,9.1657684,1795.6,1795.0,0.83563]
[1680541046829,19.2676684,1795.6,1795.1,0.318356]
[1680541047021,0.91657684,1795.5,1795.2,0.27851]
[1680541053820,0.91657684,1795.5,1795.3,0.31743717]
[1680541057859,0.91657684,1795.5,1795.2,0.2785]
[1680541060572,0.91657684,1795.5,1795.2,0.83554]
[1680541060769,1.242,1795.6,1795.2,0.83554]
[1680541060986,0.1162041,1795.8,1795.2,0.83554]
[1680541061271,0.1072041,1795.8,1795.2,0.83554]
[1680541061623,8.2049254,1795.8,1795.2,0.83554]
[1680541061824,8.2159254,1795.8,1795.2,0.83554]
[1680541062296,9.7313454,1795.8,1795.2,0.83554]
[1680541063344,9.4529254,1795.8,1795.2,0.83554]
[1680541063555,9.7313454,1795.8,1795.2,0.83554]
[1680541063731,0.97313454,1795.7,1795.2,0.83554]
[1680541065281,0.97313454,1795.7,1795.3,0.02272028]
[1680541065477,0.97313454,1795.7,1795.4,0.27848]
[1680541065835,0.97313454,1795.7,1795.3,0.30120028]
[1680541066036,0.97313454,1795.7,1795.4,0.27848]
[1680541066263,0.97313454,1795.7,1795.3,0.30121028]
[1680541068770,0.97313454,1795.7,1795.4,0.31697784]
[1680541068981,9.4529254,1795.8,1795.4,1.15242784]
[1680541068982,0.1182041,1795.8,1795.4,1.15242784]
[1680541069284,0.1072041,1795.8,1795.4,1.15242784]
[1680541071382,0.10402814,1795.8,1795.4,1.15242784]
[1680541071583,0.10402814,1795.8,1795.4,1.15842784]
[1680541074670,0.10402814,1795.8,1795.5,2.26271776]
[1680541074910,0.10402814,1795.8,1795.6,1.94919]
[1680541078539,0.10402814,1795.8,1795.6,0.83536]
[1680541078849,0.10402814,1795.8,1795.6,0.27845]
[1680541079604,2.76602218,1795.7,1795.6,0.27845]
[1680541079806,3.05302721,1795.7,1795.6,0.27845]
[1680541080420,0.28700503,1795.7,1795.6,0.27845]
[1680541080714,0.10402814,1795.8,1795.6,0.27845]
[1680541080907,2.87005032,1795.8,1795.6,0.27845]
[1680541082117,2.87005032,1795.8,1795.5,0.27845]
[1680541082330,2.87005032,1795.8,1795.4,1.15241784]
[1680541082654,0.28700503,1795.7,1795.4,0.59544784]
[1680541084102,0.28700503,1795.7,1795.4,1.15241784]
[1680541089947,3.05302721,1795.7,1795.4,0.59544784]
[1680541090148,3.05302721,1795.7,1795.4,0.31697784]
[1680541090327,0.30530272,1795.6,1795.4,0.59545784]
[1680541095350,8.90602721,1795.7,1795.4,0.59545784]
[1680541095966,8.90602721,1795.7,1795.4,1.15242784]
[1680541101242,8.90602721,1795.7,1795.4,0.59545784]
[1680541104759,8.90602721,1795.7,1795.4,0.31697784]
[1680541105357,8.90602721,1795.7,1795.4,0.59545784]
[1680541109179,8.90602721,1795.7,1795.4,0.31697784]
[1680541109351,8.61902218,1795.7,1795.4,0.31697784]
[1680541109551,8.61902218,1795.7,1795.4,0.59545784]
[1680541109779,8.61902218,1795.7,1795.4,0.27848]
[1680541110771,8.61902218,1795.7,1795.5,0.31368446]
[1680541111599,0.002,1795.7,1795.5,0.59215446]
[1680541111805,0.10402814,1795.8,1795.5,0.59215446]
[1680541111991,2.87005032,1795.8,1795.5,0.59215446]
[1680541116502,2.87005032,1795.8,1795.5,0.31368446]
[1680541116807,5.851,1795.5,1794.9,1.16713187]
[1680541117040,5.851,1795.5,1794.8,1.45611029]
[1680541117041,5.851,1795.3,1795.2,0.002]
[1680541117240,11.02844385,1795.3,1794.6,1.70086433]
[1680541117447,5.851,1795.1,1794.6,1.70086433]
[1680541117744,0.83574,1794.8,1794.7,0.31801104]
[1680541117964,0.83574,1794.8,1794.6,1.70086433]
[1680541117965,5.53298896,1794.7,1794.6,1.70086433]
[1680541118102,8.32373142,1794.7,1794.6,1.70086433]
[1680541118306,9.51459456,1794.7,1794.6,1.70086433]
[1680541118864,10.07178456,1794.7,1794.6,1.99820609]
[1680541120864,10.07178456,1794.7,1794.6,1.70086433]
[1680541121821,10.07178456,1794.7,1794.6,2.00034622]
[1680541131341,10.06278456,1794.7,1794.6,1.85034622]
[1680541131733,10.06278456,1794.7,1794.6,1.55086433]
[1680541132261,10.06278456,1794.7,1794.6,1.50086433]
[1680541132262,11.30578456,1794.7,1794.6,1.50086433]
[1680541132658,12.2333395,1794.7,1794.6,1.50086433]
[1680541132848,15.2333395,1794.7,1794.6,1.50086433]
[1680541133047,15.2423395,1794.7,1794.6,1.50086433]
[1680541134335,14.31478456,1794.7,1794.6,1.50086433]
[1680541137471,14.31478456,1794.7,1794.5,0.1]
[1680541137472,7.03298896,1794.6,1794.5,0.1]
[1680541137779,10.53298896,1794.5,1794.4,0.1]
[1680541137987,6.69010318,1794.4,1794.3,0.1]
[1680541138136,17.9470149,1794.4,1794.3,0.1]
[1680541138336,14.3714449,1794.4,1794.3,0.1]
[1680541138538,8.45812536,1794.4,1794.3,0.1]
[1680541138727,3.2037764,1794.4,1794.3,0.1]
[1680541138932,5.0020564,1794.4,1794.3,0.1]
[1680541139278,5.0040564,1794.4,1794.3,0.1]
[1680541139883,10.8550564,1794.4,1794.3,0.1]
[1680541140079,11.94056204,1794.4,1794.3,0.1]
[1680541141385,11.96328232,1794.4,1794.3,0.1]
[1680541141548,11.40600232,1794.4,1794.3,0.1]
[1680541141759,11.12736232,1794.4,1794.3,0.1]
[1680541142069,11.40600232,1794.4,1794.3,0.1]
[1680541142934,11.12736232,1794.4,1794.3,0.1]
[1680541143173,10.04185668,1794.4,1794.3,0.1]
[1680541143366,8.79885668,1794.4,1794.3,0.1]
[1680541144677,2.9251364,1794.4,1794.3,0.1]
[1680541144973,2.9231364,1794.4,1794.3,0.1]
[1680541145435,2.9231364,1794.4,1794.3,0.37866]
[1680541145602,2.9231364,1794.4,1794.3,0.1]
[1680541145892,0.15711422,1794.4,1794.3,0.1]
[1680541148995,0.15711422,1794.4,1794.3,2.17898]
[1680541149400,0.15711422,1794.4,1794.3,2.18498]
[1680541149559,0.15711422,1794.4,1794.3,2.17898]
[1680541149759,0.15711422,1794.4,1794.3,11.82018]
[1680541150003,0.15711422,1794.4,1794.3,11.82818]
[1680541150697,0.15711422,1794.4,1794.3,10.9922]
[1680541150876,0.15711422,1794.4,1794.3,11.82818]
[1680541156027,0.15711422,1794.4,1794.3,10.9922]
[1680541156341,0.15711422,1794.4,1794.3,11.82818]
[1680541158532,0.15389341,1794.4,1794.3,11.82618]
[1680541158698,0.15389341,1794.4,1794.3,11.82218]
[1680541160599,0.15389341,1794.4,1794.3,11.26486]
[1680541161507,0.15389341,1794.4,1794.3,10.02186]
[1680541162043,0.15389341,1794.4,1794.3,11.26086]
[1680541163707,0.15389341,1794.4,1794.3,9.7432]
[1680541164366,0.15389341,1794.4,1794.3,10.02186]
[1680541167130,0.15389341,1794.4,1794.3,9.7432]
[1680541167335,0.15389341,1794.4,1794.3,0.102]
[1680541167636,0.15389341,1794.4,1794.3,0.1]
[1680541170816,0.17661369,1794.4,1794.3,0.1]
[1680541171020,2.94263587,1794.4,1794.3,0.1]
[1680541171248,3.23689946,1794.4,1794.3,0.1]
[1680541171929,9.24799946,1794.4,1794.3,0.1]
[1680541172131,9.25899946,1794.4,1794.3,0.1]
[1680541174956,15.10999946,1794.4,1794.3,0.1]
[1680541180664,15.38863946,1794.4,1794.3,0.1]
[1680541181043,15.10999946,1794.4,1794.3,0.1]
[1680541181239,15.38863946,1794.4,1794.3,0.1]
[1680541181448,15.10999946,1794.4,1794.3,0.1]
[1680541182374,15.38863946,1794.4,1794.3,0.1]
[1680541182539,15.10999946,1794.4,1794.3,0.1]
[1680541182927,17.18891946,1794.4,1794.3,0.1]
[1680541183344,17.17991946,1794.4,1794.3,0.1]
[1680541183545,17.18891946,1794.4,1794.3,0.1]
[1680541184742,20.18891946,1794.4,1794.3,0.1]
[1680541184953,5.851,1794.2,1794.1,0.1]
[1680541185271,11.83546246,1794.2,1794.1,0.1]
[1680541185758,10.72076246,1794.2,1794.1,0.1]
[1680541186154,12.18876246,1794.2,1793.7,0.1]
[1680541186334,7.36073,1793.8,1793.7,0.1]
[1680541186530,8.64174246,1793.8,1793.7,0.1]
[1680541186968,0.02472028,1793.8,1793.7,0.1]
[1680541187193,0.002,1794.0,1793.7,0.37875]
[1680541187329,6.062,1794.1,1793.7,0.93625]
[1680541187330,6.064,1794.1,1793.7,0.93625]
[1680541187528,0.002,1794.1,1793.9,0.83616]
[1680541187729,6.21589341,1794.4,1793.9,0.83616]
[1680541187980,12.06889341,1794.4,1793.9,0.83616]
[1680541188140,12.06889341,1794.4,1793.9,0.27872]
[1680541188340,2.76602218,1794.3,1793.9,0.27872]
[1680541188932,12.06889341,1794.4,1793.9,0.83616]
[1680541189135,14.83491559,1794.4,1793.9,0.83616]
[1680541191600,2.76602218,1794.3,1793.9,0.83616]
[1680541192254,2.76602218,1794.3,1793.9,0.27872]
[1680541192904,10.10051374,1794.3,1793.9,0.27872]
[1680541193102,10.10251374,1794.3,1793.9,0.27872]
[1680541193543,10.10251374,1794.3,1793.8,0.28472]
[1680541193747,10.10251374,1794.3,1793.9,0.27872]
[1680541194956,10.12523402,1794.3,1793.8,0.56347]
[1680541195191,6.86125137,1794.2,1793.9,0.27871]
[1680541195401,2.76602218,1794.1,1793.9,0.27871]
[1680541195718,2.76602218,1794.1,1793.8,0.84219]
[1680541196089,2.76602218,1794.1,1793.8,0.83819]
[1680541196294,2.76602218,1794.1,1793.8,0.83619]
[1680541196651,16.3657,1794.2,1793.8,0.83619]
[1680541196859,19.13172218,1794.2,1793.8,0.83619]
[1680541197693,0.02272028,1794.1,1793.8,0.83619]
[1680541199901,8.63974246,1794.1,1793.8,0.27872]
[1680541200110,8.64174246,1794.1,1793.8,0.84219]
[1680541200256,10.55718671,1794.1,1793.8,0.84219]
[1680541200456,10.55718671,1794.1,1793.8,0.28472]
[1680541200706,10.55718671,1794.1,1793.7,0.38474]
[1680541200905,16.18538671,1794.1,1793.7,0.38074]
[1680541201070,1.61853867,1794.0,1793.7,0.38074]
[1680541201271,1.61853867,1794.0,1793.7,0.38474]
[1680541201472,4.38456085,1794.0,1793.7,0.106]
[1680541201677,2.76602218,1793.9,1793.7,0.1]
[1680541202084,0.27660222,1793.8,1793.7,0.1]
[1680541203022,3.0426244,1793.8,1793.7,0.1]
[1680541203192,2.76602218,1793.8,1793.7,0.1]
[1680541204749,8.61702218,1793.8,1793.7,0.1]
[1680541204955,8.61902218,1793.8,1793.7,0.1]
[1680541205131,14.60682218,1793.8,1793.7,0.1]
[1680541205301,17.15500668,1793.8,1793.7,0.1]
[1680541206703,19.23420668,1793.8,1793.7,0.1]
[1680541207220,20.43373668,1793.8,1793.7,0.1]
[1680541207919,20.99120668,1793.8,1793.7,0.1]
[1680541209749,20.98873777,1793.8,1793.7,0.1]
[1680541212057,22.22573777,1793.8,1793.7,0.1]
[1680541216205,17.12981749,1793.8,1793.7,0.1]
[1680541216404,14.60435327,1793.8,1793.7,0.1]
[1680541216606,14.88308327,1793.8,1793.7,0.1]
[1680541217274,14.60435327,1793.8,1793.7,0.1]
[1680541218482,14.88308327,1793.8,1793.7,0.1]
[1680541219546,14.60435327,1793.8,1793.7,0.1]
[1680541219745,17.1295716,1793.8,1793.7,0.1]
[1680541221167,17.43102188,1793.8,1793.7,0.1]
[1680541221354,17.15229188,1793.8,1793.7,0.1]
[1680541221742,11.2785716,1793.8,1793.7,0.1]
[1680541221937,8.75335327,1793.8,1793.7,0.1]
[1680541222871,14.60435327,1793.8,1793.7,0.1]
[1680541227785,18.44055327,1793.8,1793.7,0.1]
[1680541232514,17.88308327,1793.8,1793.7,0.1]
[1680541232806,18.44055327,1793.8,1793.7,0.1]
[1680541233009,21.32379063,1793.8,1793.7,0.1]
[1680541234116,14.60435327,1793.8,1793.7,0.1]
[1680541234414,0.002,1793.8,1793.7,0.1]
[1680541234714,0.27873,1793.8,1793.7,0.1]
[1680541235307,10.95126028,1793.9,1793.7,0.1]
[1680541235489,13.99601246,1793.9,1793.7,0.1]
[1680541235689,2.76602218,1793.8,1793.7,0.1]
[1680541237121,2.76602218,1793.8,1793.0,1.16631737]
[1680541237290,5.851,1793.0,1792.8,1.6008643]
[1680541237630,9.45364218,1792.9,1792.8,1.6008643]
[1680541237778,8.89789218,1792.9,1792.8,1.6008643]
[1680541237980,9.7885814,1792.9,1792.8,1.5508643]
[1680541238174,10.3553314,1792.9,1792.8,1.5508643]
[1680541238377,11.5983314,1792.9,1792.8,1.5508643]
[1680541238615,14.87670848,1792.9,1792.8,1.5508643]
[1680541238822,14.5983314,1792.9,1792.8,1.5508643]
[1680541239022,16.20363965,1792.9,1792.8,1.5508643]
[1680541239323,0.797,1792.8,1792.6,0.1]
[1680541239634,20.62416246,1792.7,1792.4,0.223064]
[1680541239841,9.86002218,1792.5,1792.4,0.223064]
[1680541240040,10.69884218,1792.5,1792.4,0.223064]
[1680541240200,13.7489264,1792.5,1792.4,0.085061]
[1680541240623,19.6972264,1792.5,1792.4,0.085061]
[1680541240801,19.6972264,1792.5,1791.6,0.006]
[1680541241031,2.76602218,1792.4,1791.7,1.0]
[1680541241339,5.851,1792.3,1791.7,1.0]
[1680541241543,2.76602218,1792.2,1791.7,1.0]
[1680541241703,2.76602218,1792.2,1791.8,1.243]
[1680541242051,2.76602218,1792.2,1791.8,0.8673]
[1680541242341,0.28997,1792.3,1791.8,0.8673]
[1680541242549,3.04499218,1792.3,1791.7,1.0]
[1680541242752,3.04499218,1792.3,1791.8,0.1]
[1680541243044,3.06771246,1792.3,1791.8,0.1]
[1680541243344,3.07671246,1792.3,1791.8,0.1]
[1680541243548,8.61702218,1792.2,1791.8,0.1]
[1680541243845,8.62802218,1792.2,1791.8,0.1]
[1680541246348,2.77702218,1792.2,1791.8,0.1]
[1680541246545,2.76602218,1792.2,1791.8,0.1]
[1680541246847,2.77502218,1792.2,1791.8,0.127906]
[1680541247209,2.77502218,1792.2,1791.9,1.243]
[1680541247740,0.009,1792.2,1791.9,1.243]
[1680541247925,0.28795,1792.4,1792.0,0.1243]
[1680541248106,2.77502218,1792.4,1792.0,0.1243]
[1680541248542,3.05397218,1792.4,1792.0,0.1243]
[1680541249113,3.61188218,1792.4,1792.0,0.1243]
[1680541249552,0.009,1792.4,1792.0,1.3673]
[1680541249730,0.009,1792.4,1792.0,1.243]
[1680541249944,0.27895,1792.4,1792.0,1.243]
[1680541250268,6.13895,1792.5,1791.9,1.239]
[1680541250565,5.862,1792.5,1791.9,1.36803]
[1680541250997,5.862,1792.5,1791.9,1.92609]
[1680541251266,2.76602218,1792.4,1791.9,1.36803]
[1680541251443,2.77502218,1792.4,1792.0,0.415813]
[1680541251649,2.77502218,1792.4,1792.0,0.973843]
[1680541253667,0.009,1792.4,1792.0,0.973843]
[1680541253871,0.03172028,1792.5,1792.0,0.973843]
[1680541254074,2.79774246,1792.5,1792.2,0.27898]
[1680541254231,0.03172028,1792.5,1792.2,0.27898]
[1680541254434,0.009,1792.5,1792.3,1.243]
[1680541254739,0.009,1792.8,1792.4,0.40325]
[1680541254950,2.77502218,1792.8,1792.4,0.40325]
[1680541255159,2.77502218,1792.8,1792.4,0.96116]
[1680541255559,0.009,1792.8,1792.4,0.96116]
[1680541255868,0.009,1792.8,1792.5,0.375046]
[1680541257244,0.009,1792.9,1792.5,2.07981]
[1680541257644,0.009,1792.9,1792.4,0.28094]
[1680541257645,2.77502218,1792.9,1792.4,0.28094]
[1680541257878,3.05479643,1792.9,1792.4,0.27894]
[1680541258180,0.02272028,1792.8,1792.4,0.27894]
[1680541258493,0.03172028,1792.8,1792.4,0.27894]
[1680541258853,3.07663246,1792.8,1792.2,0.002]
[1680541259165,3.07663246,1792.8,1792.2,0.27897]
[1680541259166,3.35640671,1792.8,1792.2,0.27897]
[1680541259543,8.85091671,1792.8,1792.2,0.27897]
[1680541259893,8.85291671,1792.8,1792.2,0.83694]
[1680541260460,2.76602218,1792.7,1792.2,0.27898]
[1680541260775,0.2993225,1792.6,1792.2,0.27898]
[1680541260946,0.03172028,1792.6,1792.2,0.83695]
[1680541261150,0.02272028,1792.6,1792.2,0.83695]
[1680541262685,0.009,1792.7,1792.3,1.239]
[1680541262898,0.009,1792.7,1792.4,1.95265]
[1680541263062,0.009,1792.7,1792.6,0.83676]
[1680541263463,0.009,1792.9,1792.6,0.83676]
[1680541263683,2.77502218,1792.9,1792.6,0.83676]
[1680541263883,2.77502218,1792.9,1792.6,0.27892]
[1680541264085,0.27750222,1792.8,1792.6,0.27892]
[1680541264295,0.28650222,1792.8,1792.6,0.27892]
[1680541264644,0.009,1792.8,1792.6,0.27892]
[1680541265658,0.009,1792.8,1792.6,0.83676]
[1680541266078,0.009,1793.1,1792.6,0.83676]
[1680541267275,2.76602218,1793.0,1792.6,0.83676]
[1680541267462,0.009,1793.0,1792.6,0.83676]
[1680541267664,0.009,1793.2,1792.9,1.234]
[1680541267922,0.009,1793.2,1793.0,2.07558]
[1680541268134,0.006,1793.4,1793.1,0.207558]
[1680541268279,0.009,1793.4,1793.2,1.95181]
[1680541268767,0.006,1793.4,1793.3,1.243]
[1680541268975,0.03902976,1793.5,1793.4,4.7396]
[1680541269180,0.03902976,1793.5,1793.4,3.1946]
[1680541269607,0.03902976,1793.5,1793.4,2.0794]
[1680541269783,0.03902976,1793.5,1793.4,2.3319181]
[1680541269991,0.03902976,1793.5,1793.4,1.0889181]
[1680541270223,0.03902976,1793.5,1793.4,0.8364]
[1680541272233,0.03540215,1793.5,1793.4,0.8364]
[1680541273132,0.03540215,1793.5,1793.4,0.2788]
[1680541273493,0.03540215,1793.5,1793.4,0.8364]
[1680541273826,0.03540215,1793.5,1793.4,2.0794]
[1680541274032,0.03540215,1793.5,1793.4,2.398862]
[1680541276071,0.03540215,1793.5,1793.4,1.155862]
[1680541281995,6.75308646,1793.3,1793.0,0.83658]
[1680541282247,2.76602218,1793.2,1793.0,0.83658]
[1680541283443,0.41484243,1793.4,1793.0,0.83658]
[1680541283644,3.16986461,1793.4,1793.0,0.83658]
[1680541284250,0.40384243,1793.4,1793.0,0.83658]
[1680541286707,3.16986461,1793.4,1793.0,0.83658]
[1680541288709,0.40384243,1793.4,1793.0,0.83658]
[1680541288910,5.71992243,1793.5,1793.0,0.83658]
[1680541289128,8.48594461,1793.5,1793.0,0.83658]
[1680541290013,5.71992243,1793.5,1793.0,0.83658]
[1680541290918,6.33746377,1793.5,1793.0,0.83658]
[1680541294344,6.33746377,1793.5,1793.1,1.78444177]
[1680541294538,6.34646377,1793.5,1793.1,1.78444177]
[1680541294722,6.34646377,1793.5,1793.1,1.22675177]
[1680541294929,6.33746377,1793.5,1793.1,1.22675177]
[1680541295126,0.63374638,1793.4,1793.1,1.22675177]
[1680541295438,0.63374638,1793.4,1793.1,1.78444177]
[1680541295607,5.72892243,1793.5,1793.1,1.78444177]
[1680541301277,0.06912243,1793.5,1793.1,1.78444177]
[1680541301442,0.05812243,1793.5,1793.1,1.78444177]
[1680541301872,0.05812243,1793.5,1793.1,1.22675177]
[1680541302192,0.05812243,1793.5,1793.1,1.78444177]
[1680541302323,0.18823467,1793.5,1793.1,1.22675177]
[1680541302723,0.05812243,1793.5,1793.1,1.78444177]
[1680541302983,0.05812243,1793.5,1793.1,1.22675177]
[1680541303163,1.15112243,1793.6,1793.1,1.22675177]
[1680541303362,2.76602218,1793.6,1793.1,1.22675177]
[1680541303682,2.76602218,1793.6,1793.1,2.07502795]
[1680541304457,1.231,1793.5,1793.1,0.94792177]
[1680541304641,1.50978,1793.5,1793.1,0.94792177]
[1680541304819,1.52181,1793.3,1793.1,0.94792177]
[1680541305023,3.19703318,1793.2,1793.1,0.94792177]
[1680541305276,2.91820318,1793.2,1793.1,0.94792177]
[1680541306245,2.91820318,1793.2,1792.8,0.28487]
[1680541306449,2.91820318,1793.2,1792.8,0.27887]
[1680541306645,2.91820318,1793.2,1792.7,0.8427]
[1680541306844,1.53482032,1793.1,1792.7,0.006]
[1680541307050,4.3008425,1793.1,1792.6,0.28491]
[1680541307452,0.70894425,1793.0,1792.6,0.006]
[1680541307678,0.43008425,1793.0,1792.6,0.28491]
[1680541307878,0.43008425,1793.0,1792.6,0.84275]
[1680541308290,0.43008425,1793.0,1792.7,1.12808217]
[1680541308490,0.43008425,1793.0,1792.7,1.13408217]
[1680541310527,4.3028425,1793.1,1792.7,1.13408217]
[1680541310528,4.3028425,1793.1,1792.7,1.69189217]
[1680541310690,4.3008425,1793.1,1792.7,1.69189217]
[1680541312125,3.0578425,1793.1,1792.7,1.69189217]
[1680541314799,2.76602218,1793.1,1792.7,1.69189217]
[1680541319451,1.388181,1793.2,1792.7,1.69189217]
[1680541319633,4.15220318,1793.2,1792.7,1.69189217]
[1680541319836,5.8212,1793.3,1792.7,1.69189217]
[1680541320079,5.8212,1793.3,1792.9,1.239]
[1680541320080,0.002,1793.3,1792.9,1.239]
[1680541320389,0.002,1793.4,1793.0,1.95199]
[1680541320549,6.0628,1793.6,1793.0,1.95799]
[1680541320550,6.0648,1793.6,1793.0,1.95799]
[1680541320879,8.83082218,1793.6,1793.2,0.83646]
[1680541321396,8.83082218,1793.6,1793.2,0.83846]
[1680541321677,8.83082218,1793.6,1793.2,0.84246]
[1680541322831,6.0648,1793.6,1793.2,0.84246]
[1680541323627,0.002,1793.6,1793.2,0.84246]
[1680541323823,10.61690001,1793.7,1793.3,0.084246]
[1680541324041,13.38292219,1793.7,1793.4,0.83639]
[1680541324239,0.11200001,1793.7,1793.4,0.83639]
[1680541324472,0.11000001,1793.7,1793.4,0.83639]
[1680541325166,0.11000001,1793.7,1793.4,0.27879]
[1680541325837,0.11000001,1793.7,1793.4,0.83639]
[1680541326804,0.11000001,1793.7,1793.5,0.083639]
[1680541326944,0.11000001,1793.7,1793.6,0.85901016]
[1680541328798,0.10625872,1793.7,1793.6,0.85901016]
[1680541336890,0.10625872,1793.7,1793.6,2.10201016]
[1680541339263,0.10625872,1793.7,1793.6,2.92240388]
[1680541339411,0.10625872,1793.7,1793.6,3.44711617]
[1680541340759,0.10625872,1793.7,1793.6,2.18139601]
[1680541343807,0.10625872,1793.7,1793.6,1.62386601]
[1680541344158,0.10625872,1793.7,1793.6,1.09915372]
[1680541344850,0.10625872,1793.7,1793.6,0.82039372]
[1680541346844,0.10625872,1793.7,1793.6,0.81823853]
[1680541347568,2.8722809,1793.7,1793.6,0.81823853]
[1680541347721,9.5595309,1793.7,1793.6,0.81823853]
[1680541347922,13.64942399,1793.7,1793.6,0.81823853]
[1680541348137,13.64942399,1793.7,1792.9,0.006]
[1680541348372,5.851,1793.5,1792.7,11.2416]
[1680541348671,0.83645,1793.3,1792.7,0.008]
[1680541348869,2.76602218,1793.2,1792.6,0.28291]
[1680541349024,2.76602218,1793.2,1792.6,0.28491]
[1680541349226,0.27660222,1793.1,1792.8,0.62855278]
[1680541349636,3.0426244,1793.1,1792.8,0.62855278]
[1680541350269,3.0426244,1793.1,1792.7,0.2789]
[1680541352335,3.0426244,1793.1,1792.6,0.83675]
[1680541352557,0.30426244,1793.0,1792.6,0.83675]
[1680541352967,0.30426244,1793.0,1792.6,0.27891]
[1680541353181,2.76602218,1792.9,1792.5,0.106]
[1680541353363,2.76602218,1792.9,1792.5,0.1]
[1680541353364,0.27889,1792.8,1792.5,0.1]
[1680541353568,3.0426244,1792.8,1792.5,0.1]
[1680541353770,3.3215244,1792.8,1792.5,0.1]
[1680541354075,3.3215144,1792.8,1792.5,0.1]
[1680541354461,2.76602218,1792.7,1792.5,0.1]
[1680541354779,0.27660222,1792.6,1792.5,0.1]
[1680541355739,0.55552222,1792.6,1792.5,0.1]
[1680541355975,3.0426244,1792.6,1792.5,0.1]
[1680541356197,3.3215444,1792.6,1792.5,0.1]
[1680541356606,10.4155444,1792.6,1792.5,0.1]
[1680541356905,10.4175444,1792.6,1792.5,0.1]
[1680541357260,10.1386244,1792.6,1792.5,0.1]
[1680541357898,3.0446244,1792.6,1792.5,0.1]
[1680541358110,3.0426244,1792.6,1792.5,0.1]
[1680541358262,3.3215444,1792.6,1792.5,0.1]
[1680541362238,4.5585444,1792.6,1792.5,0.1]
[1680541362980,4.2796244,1792.6,1792.5,0.1]
[1680541363183,4.5585444,1792.6,1792.5,0.1]
[1680541366306,10.9673844,1792.6,1792.5,0.1]
[1680541366522,16.4192844,1792.6,1792.5,0.1]
[1680541368207,26.9794844,1792.6,1792.5,0.1]
[1680541369328,27.2094844,1792.6,1792.5,0.1]
[1680541371047,27.2094844,1792.6,1792.5,0.09661228]
[1680541371370,26.9794844,1792.6,1792.5,0.09661228]
[1680541373396,27.94975336,1792.6,1792.5,0.09661228]
[1680541373698,27.2094844,1792.6,1792.5,0.09661228]
[1680541373862,26.4216444,1792.6,1792.5,0.09661228]
[1680541374071,26.9794844,1792.6,1792.5,0.09661228]
[1680541378906,0.14947677,1792.4,1792.1,0.1]
[1680541379068,7.082,1792.2,1792.1,0.1]
[1680541379272,10.68697218,1792.2,1792.1,0.1]
[1680541379909,21.02897218,1792.2,1792.1,0.1]
[1680541380564,24.02897218,1792.2,1792.1,0.1]
[1680541380872,27.1314134,1792.2,1792.1,0.1]
[1680541383379,26.5734434,1792.2,1792.1,0.1]
[1680541383578,23.5734434,1792.2,1792.1,0.1]
[1680541383779,16.2124634,1792.2,1792.1,0.1]
[1680541385007,16.2154634,1792.2,1792.1,0.05]
[1680541385207,0.002,1792.2,1792.1,0.05]
[1680541385383,15.86437677,1792.4,1792.1,0.05]
[1680541385569,2.76602218,1792.3,1792.1,0.05]
[1680541386268,2.76602218,1792.3,1792.2,0.90733931]
[1680541387206,2.76602218,1792.3,1792.1,0.05]
[1680541388274,15.86437677,1792.4,1792.1,0.05]
[1680541388475,18.63039895,1792.4,1792.1,0.329]
[1680541388970,0.15147677,1792.4,1792.1,0.329]
[1680541389181,0.14947677,1792.4,1792.1,2.13]
[1680541389375,0.14947677,1792.4,1792.2,0.213]
[1680541389571,0.14947677,1792.4,1792.2,0.49198]
[1680541389812,0.14947677,1792.4,1792.2,0.213]
[1680541391777,0.14947677,1792.4,1792.1,1.295]
[1680541391979,2.91549895,1792.4,1792.1,0.056]
[1680541392179,2.91549895,1792.4,1792.1,0.05]
[1680541395830,2.91549895,1792.4,1792.1,0.329]